fUSD/lending_fUSD_20260509
["ID","MTS","AMOUNT","RATE_DAILY","PERIOD"]
[421900275,1778312523000,-1500.0,0.00041957,120]
[421900273,1778312523000,-1500.0,0.00041957,120]
[421900272,1778312523000,-1500.0,0.00041957,120]
[421900270,1778312523000,-1500.0,0.00041957,120]
[421900271,1778312523000,-1500.0,0.00041957,120]
[421900277,1778312523000,-1500.0,0.00041957,120]
[421900295,1778312524000,-1500.0,0.00041957,120]
[421900294,1778312524000,-1500.0,0.00041957,120]
[421900293,1778312524000,-1500.0,0.00041957,120]
[421900292,1778312524000,-1500.0,0.00041957,120]
[421900290,1778312524000,-1500.0,0.00041957,120]
[421900291,1778312524000,-1500.0,0.00041957,120]
[421900285,1778312524000,-1500.0,0.00041957,120]
[421900289,1778312524000,-1500.0,0.00041957,120]
[421900287,1778312524000,-1500.0,0.00041957,120]
[421900286,1778312524000,-1500.0,0.00041957,120]
[421900284,1778312524000,-1500.0,0.00041957,120]
[421900296,1778312524000,-1500.0,0.00041957,120]
[421900288,1778312524000,-1500.0,0.00041957,120]
[421900283,1778312524000,-1500.0,0.00041957,120]
[421900298,1778312524000,-500.0,0.00041957,120]
[421900299,1778312524000,-500.0,0.00041957,120]
[421900297,1778312524000,-431.58615143,0.00041957,120]
[421900310,1778312524000,-500.0,0.00041957,120]
[421900311,1778312524000,-500.0,0.00041957,120]
[421900309,1778312524000,-500.0,0.00041957,120]
[421900308,1778312524000,-500.0,0.00041957,120]
[421900305,1778312524000,-500.0,0.00041957,120]
[421900307,1778312524000,-500.0,0.00041957,120]
[421900306,1778312524000,-500.0,0.00041957,120]
[421900302,1778312524000,-500.0,0.00041957,120]
[421900303,1778312524000,-500.0,0.00041957,120]
[421900301,1778312524000,-50000.0,0.00041957,60]
[421900300,1778312524000,-557.78534344,0.00041957,120]
[421900304,1778312524000,-500.0,0.00041957,120]
[421900321,1778312525000,-531.76519931,0.00041957,120]
[421900322,1778312525000,-50000.0,0.00041957,61]
[421900323,1778312525000,-50000.0,0.00041957,62]
[421900320,1778312525000,-500.0,0.00041957,120]
[421900319,1778312525000,-500.0,0.00041957,120]
[421900312,1778312525000,-500.0,0.00041957,120]
[421900317,1778312525000,-500.0,0.00041957,120]
[421900316,1778312525000,-500.0,0.00041957,120]
[421900313,1778312525000,-500.0,0.00041957,120]
[421900315,1778312525000,-500.0,0.00041957,120]
[421900314,1778312525000,-500.0,0.00041957,120]
[421900318,1778312525000,-500.0,0.00041957,120]
[421900324,1778312525000,-50000.0,0.00041957,63]
[421900327,1778312525000,-561.814967,0.00041957,120]
[421900326,1778312525000,-561.814967,0.00041957,120]
[421900325,1778312525000,-282.40872675,0.00041957,120]
[421900337,1778312525000,-1888.502247,0.00041957,120]
[421900336,1778312525000,-1888.502246,0.00041957,120]
[421900335,1778312525000,-1888.502246,0.00041957,120]
[421900334,1778312525000,-1888.502246,0.00041957,120]
[421900338,1778312525000,-151.0,0.00041957,120]
[421900331,1778312525000,-561.814967,0.00041957,120]
[421900333,1778312525000,-561.814965,0.00041957,120]
[421900330,1778312525000,-561.814967,0.00041957,120]
[421900329,1778312525000,-561.814967,0.00041957,120]
[421900328,1778312525000,-561.814967,0.00041957,120]
[421900332,1778312525000,-561.814967,0.00041957,120]
[421900347,1778312526000,-154.0,0.00041967,120]
[421900346,1778312526000,-240.0,0.00041967,120]
[421900345,1778312526000,-1515.0,0.00041967,120]
[421900344,1778312526000,-243.0,0.00041967,120]
[421900341,1778312526000,-199.0,0.00041967,120]
[421900342,1778312526000,-159.0,0.00041967,120]
[421900340,1778312526000,-424.0217122,0.00041964,30]
[421900339,1778312526000,-500.0,0.00041963,63]
[421900348,1778312526000,-224.0,0.00041967,120]
[421900343,1778312526000,-151.0,0.00041967,120]
[421900349,1778312526000,-156.0,0.00041967,120]
[421900350,1778312526000,-156.0,0.00041967,120]
[421900351,1778312526000,-461.0,0.00041967,120]
[421900361,1778312526000,-151.0,0.00041967,120]
[421900360,1778312526000,-151.0,0.00041967,120]
[421900362,1778312526000,-151.0,0.00041967,120]
[421900358,1778312526000,-151.0,0.00041967,120]
[421900356,1778312526000,-151.0,0.00041967,120]
[421900359,1778312526000,-285.992992,0.00041967,120]
[421900354,1778312526000,-151.0,0.00041967,120]
[421900355,1778312526000,-151.0,0.00041967,120]
[421900353,1778312526000,-151.0,0.00041967,120]
[421900352,1778312526000,-706.63837255,0.00041967,30]
[421900357,1778312526000,-151.0,0.00041967,120]
[421900375,1778312527000,-150.6,0.00041984,120]
[421900373,1778312527000,-1007.0,0.0004198,100]
[421900372,1778312527000,-1000.0,0.00041975,120]
[421900371,1778312527000,-6553.81,0.00041975,120]
[421900368,1778312527000,-162.330251,0.00041967,120]
[421900364,1778312527000,-151.0,0.00041967,120]
[421900365,1778312527000,-151.0,0.00041967,120]
[421900367,1778312527000,-151.0,0.00041967,120]
[421900366,1778312527000,-151.0,0.00041967,120]
[421900374,1778312527000,-2228.03155288,0.0004198,70]
[421900363,1778312527000,-151.0,0.00041967,120]
[421900369,1778312527000,-250.0,0.00041967,30]
[421900376,1778312527000,-170.76857129,0.0004199,60]
[421900370,1778312527000,-250.0,0.00041973,120]
[421900377,1778312527000,-1555.5,0.00041994,30]
[421900378,1778312527000,-302.12681901,0.00041995,120]
[421900388,1778312527000,-151.0,0.00041998,30]
[421900390,1778312527000,-151.0,0.00041998,30]
[421900389,1778312527000,-500.0,0.00041998,30]
[421900387,1778312527000,-500.0,0.00041998,30]
[421900385,1778312527000,-500.0,0.00041998,30]
[421900391,1778312527000,-500.0,0.00041998,30]
[421900384,1778312527000,-393.79521893,0.00041998,120]
[421900382,1778312527000,-1030.0,0.00041998,30]
[421900383,1778312527000,-500.0,0.00041998,30]
[421900379,1778312527000,-175.60155629,0.00041995,120]
[421900380,1778312527000,-1656.06,0.00041995,120]
[421900381,1778312527000,-224.82111816,0.00041998,120]
[421900386,1778312527000,-151.0,0.00041998,30]
[421900403,1778312528000,-500.0,0.00041998,30]
[421900401,1778312528000,-500.0,0.00041998,30]
[421900399,1778312528000,-287.5251292,0.00041998,30]
[421900400,1778312528000,-500.0,0.00041998,30]
[421900396,1778312528000,-500.0,0.00041998,30]
[421900394,1778312528000,-151.0,0.00041998,30]
[421900397,1778312528000,-151.0,0.00041998,30]
[421900395,1778312528000,-535.6665329,0.00041998,30]
[421900392,1778312528000,-151.0,0.00041998,30]
[421900393,1778312528000,-500.0,0.00041998,30]
[421900404,1778312528000,-500.0,0.00041998,30]
[421900398,1778312528000,-500.0,0.00041998,30]
[421900405,1778312528000,-500.0,0.00041998,30]
[421900402,1778312528000,-224.69266008,0.00041998,30]
[421900408,1778312528000,-500.0,0.00041998,30]
[421900406,1778312528000,-1500.0,0.00041998,30]
[421900419,1778312528000,-180.78707821,0.00042,120]
[421900416,1778312528000,-469.31094426,0.00041999,120]
[421900417,1778312528000,-1119.0,0.00041999,30]
[421900413,1778312528000,-500.0,0.00041998,30]
[421900415,1778312528000,-528.2696188,0.00041999,120]
[421900418,1778312528000,-2081.33,0.00041999,120]
[421900410,1778312528000,-500.0,0.00041998,30]
[421900412,1778312528000,-500.0,0.00041998,30]
[421900411,1778312528000,-500.0,0.00041998,30]
[421900409,1778312528000,-500.0,0.00041998,30]
[421900407,1778312528000,-500.0,0.00041998,30]
[421900414,1778312528000,-3908.85469638,0.00041999,30]
[421900428,1778312529000,-193.99828211,0.00042,120]
[421900420,1778312529000,-200.000001,0.00042,120]
[421900421,1778312529000,-4132.1589212,0.00042,120]
[421900423,1778312529000,-753.75638282,0.00042,120]
[421900422,1778312529000,-1155.97546027,0.00042,120]
[421900425,1778312529000,-417.0,0.00042,30]
[421900424,1778312529000,-500.0,0.00042,120]
[421900426,1778312529000,-206.47443462,0.00042,120]
[421900427,1778312529000,-2145.52781634,0.00042,120]
[421900434,1778312529000,-248.47521709,0.00042,31]
[421900430,1778312529000,-1255.93972074,0.00042,120]
[421900432,1778312529000,-976.12621292,0.00042,120]
[421900431,1778312529000,-444.73554877,0.00042,120]
[421900433,1778312529000,-150.33067234,0.00042,120]
[421900436,1778312529000,-179.16232486,0.00042,30]
[421900435,1778312529000,-1244.7380339,0.00042,30]
[421900437,1778312529000,-1000000.0,0.00042,120]
[421900439,1778312529000,-597454.56733948,0.00042,120]
[421900438,1778312529000,-1000000.0,0.00042,120]
[421900429,1778312529000,-211.69419274,0.00042,120]
[421900441,1778312548000,-183.13,0.00024388,30]
[421900443,1778312548000,-183.13,0.00026098,30]
[421900442,1778312548000,-183.13,0.00025243,30]
[421900444,1778312548000,-183.13,0.00026953,30]
[421900445,1778312549000,-183.13,0.00027808,30]
[421900447,1778312549000,-150.94,0.00035616,60]
[421900446,1778312549000,-183.13,0.00028662,30]
[421900449,1778312549000,-337.8,0.00038125,30]
[421900450,1778312549000,-187.50622456,0.000398,30]
[421900451,1778312549000,-187.50622455,0.000398,30]
[421900452,1778312549000,-275.63,0.0004075,120]
[421900453,1778312549000,-1143.1,0.00041041,120]
[421900455,1778312549000,-700.0,0.00041177,120]
[421900448,1778312549000,-337.8,0.00036153,30]
[421900456,1778312549000,-500.0,0.00041177,120]
[421900457,1778312549000,-1143.1,0.00041694,120]
[421900458,1778312549000,-700.0,0.00041725,120]
[421900459,1778312549000,-500.0,0.00041725,120]
[421900461,1778312549000,-1000000.0,0.00042,120]
[421900460,1778312549000,-402545.43266052,0.00042,120]
[421900462,1778312549000,-1000000.0,0.00042,120]
[421900463,1778312549000,-1000000.0,0.00042,120]
[421900464,1778312549000,-1000000.0,0.00042,120]
[421900454,1778312549000,-150.93,0.00041096,120]
[421900476,1778312550000,-1035.84194745,0.00042,120]
[421900474,1778312550000,-1364.91483176,0.00042,30]
[421900475,1778312550000,-3983.44823674,0.00042,120]
[421900473,1778312550000,-10066.37380771,0.00042,30]
[421900471,1778312550000,-5479.628509,0.00042,120]
[421900472,1778312550000,-50000.0,0.00042,120]
[421900465,1778312550000,-10221.0356937,0.00042,120]
[421900468,1778312550000,-750327.0,0.00042,120]
[421900467,1778312550000,-2000.0,0.00042,120]
[421900469,1778312550000,-804095.02172391,0.00042,120]
[421900466,1778312550000,-1824.40105777,0.00042,31]
[421900477,1778312550000,-974.78526052,0.00042,120]
[421900470,1778312550000,-8093.01797879,0.00042,30]
[421900478,1778312550000,-3919.738,0.00042,30]
[421900482,1778312550000,-158.32047735,0.00042,60]
[421900481,1778312550000,-202.00302696,0.00042,120]
[421900479,1778312550000,-16342.52208783,0.00042,120]
[421900491,1778312550000,-1065.0,0.00042,120]
[421900492,1778312550000,-31952.39582644,0.00042,30]
[421900490,1778312550000,-1000.0,0.00042,120]
[421900489,1778312550000,-11518.87045333,0.00042,30]
[421900488,1778312550000,-724734.40619643,0.00042,30]
[421900493,1778312550000,-18000.0,0.00042,120]
[421900487,1778312550000,-3436.72,0.00042,30]
[421900485,1778312550000,-521.8730439,0.00042,120]
[421900483,1778312550000,-4649.659107,0.00042,120]
[421900484,1778312550000,-167.66,0.00042,120]
[421900480,1778312550000,-186.14760728,0.00042,30]
[421900486,1778312550000,-543.3823959,0.00042,120]
[421900504,1778312551000,-150.6,0.00042084,120]
[421900502,1778312551000,-1500.11726712,0.00042029,120]
[421900503,1778312551000,-268.54,0.00042082,120]
[421900499,1778312551000,-606.24,0.00042027,120]
[421900501,1778312551000,-181.87,0.00042027,120]
[421900498,1778312551000,-606.24,0.00042027,120]
[421900496,1778312551000,-606.24,0.00042027,120]
[421900497,1778312551000,-606.24,0.00042027,120]
[421900495,1778312551000,-2522.25940644,0.00042001,60]
[421900494,1778312551000,-203.62,0.00042,120]
[421900505,1778312551000,-358.0,0.000421,120]
[421900500,1778312551000,-606.27,0.00042027,120]
[421900506,1778312551000,-256.838007,0.00042136,120]
[421900514,1778312551000,-284.4,0.00042192,120]
[421900507,1778312551000,-173.61,0.00042137,120]
[421900518,1778312551000,-220.95409196,0.00042203,120]
[421900515,1778312551000,-723.20315709,0.000422,120]
[421900516,1778312551000,-199.0,0.000422,120]
[421900517,1778312551000,-653323.07021731,0.000422,30]
[421900513,1778312551000,-1561.0,0.00042192,120]
[421900519,1778312551000,-216.24548883,0.00042203,120]
[421900512,1778312551000,-306.25708332,0.00042192,30]
[421900520,1778312551000,-700.0,0.00042273,120]
[421900509,1778312551000,-250.0,0.00042159,120]
[421900508,1778312551000,-226.85901016,0.00042158,120]
[421900510,1778312551000,-150.6,0.00042184,120]
[421900511,1778312551000,-210.88286244,0.00042191,120]
[421900531,1778312552000,-250.0,0.00042411,120]
[421900522,1778312552000,-150.6,0.00042284,120]
[421900521,1778312552000,-500.0,0.00042273,120]
[421900524,1778312552000,-223.93256596,0.0004231,120]
[421900523,1778312552000,-500.0,0.00042287,45]
[421900527,1778312552000,-1143.1,0.00042347,120]
[421900526,1778312552000,-515.09,0.00042332,120]
[421900528,1778312552000,-150.6,0.00042384,120]
[421900530,1778312552000,-250.0,0.00042411,120]
[421900529,1778312552000,-573.61,0.000424,120]
[421900525,1778312552000,-169.20519531,0.0004231,120]
[421900532,1778312552000,-311.02471787,0.00042434,90]
[421900533,1778312552000,-193.71766429,0.0004246,30]
[421900534,1778312552000,-154.0,0.00042466,120]
[421900543,1778312552000,-500.0,0.00042466,30]
[421900545,1778312552000,-500.0,0.00042466,30]
[421900544,1778312552000,-500.0,0.00042466,30]
[421900542,1778312552000,-500.0,0.00042466,30]
[421900540,1778312552000,-500.0,0.00042466,30]
[421900539,1778312552000,-500.0,0.00042466,30]
[421900538,1778312552000,-500.0,0.00042466,30]
[421900537,1778312552000,-500.0,0.00042466,30]
[421900535,1778312552000,-264.0,0.00042466,120]
[421900536,1778312552000,-500.0,0.00042466,30]
[421900541,1778312552000,-500.0,0.00042466,30]
[421900552,1778312553000,-500.0,0.00042466,30]
[421900555,1778312553000,-279.94,0.00042466,120]
[421900554,1778312553000,-250.0,0.00042466,120]
[421900556,1778312553000,-168.45,0.00042466,120]
[421900553,1778312553000,-198.96646149,0.00042466,30]
[421900559,1778312553000,-219.23011724,0.00042489,120]
[421900550,1778312553000,-500.0,0.00042466,30]
[421900549,1778312553000,-500.0,0.00042466,30]
[421900547,1778312553000,-500.0,0.00042466,30]
[421900548,1778312553000,-500.0,0.00042466,30]
[421900546,1778312553000,-500.0,0.00042466,30]
[421900551,1778312553000,-500.0,0.00042466,30]
[421900557,1778312553000,-150.6,0.00042484,120]
[421900566,1778312553000,-435.21699561,0.0004249,120]
[421900561,1778312553000,-392.06563707,0.0004249,120]
[421900558,1778312553000,-574.424889,0.00042489,78]
[421900572,1778312553000,-500.0,0.000425,45]
[421900569,1778312553000,-1255.22300747,0.0004249,120]
[421900568,1778312553000,-304.23060887,0.0004249,120]
[421900570,1778312553000,-178.90821646,0.0004249,120]
[421900573,1778312553000,-1694.7109749,0.000425,120]
[421900571,1778312553000,-500.0,0.000425,45]
[421900565,1778312553000,-254.88219049,0.0004249,120]
[421900564,1778312553000,-1259.44984575,0.0004249,120]
[421900563,1778312553000,-472.15239481,0.0004249,120]
[421900562,1778312553000,-211.53786075,0.0004249,120]
[421900560,1778312553000,-216.39825844,0.0004249,120]
[421900567,1778312553000,-225.15160466,0.0004249,120]
[421900581,1778312554000,-6904.0,0.000425,120]
[421900575,1778312554000,-1143.49,0.000425,120]
[421900574,1778312554000,-500.0,0.000425,45]
[421900576,1778312554000,-1513.80381826,0.000425,120]
[421900577,1778312554000,-150.0,0.000425,120]
[421900578,1778312554000,-1132.66,0.000425,120]
[421900579,1778312554000,-153.0,0.000425,120]
[421900580,1778312554000,-519.98896931,0.000425,120]
[421900582,1778312554000,-2000.0,0.00042557,120]
[421900583,1778312554000,-203.86501493,0.00042564,120]
[421900585,1778312554000,-150.6,0.00042584,120]
[421900584,1778312554000,-216.24548883,0.00042568,120]
[421900586,1778312554000,-99366.96967724,0.000426,120]
[421900587,1778312554000,-250.0,0.0004263,120]
[421900588,1778312554000,-186.54,0.00042684,120]
[421900589,1778312554000,-150.6,0.00042684,120]
[421900590,1778312554000,-5000.0,0.000427,30]
[421900591,1778312554000,-1561.0,0.0004274,120]
[421900593,1778312554000,-152.11194728,0.00042747,120]
[421900592,1778312554000,-192.9952388,0.0004274,120]
[421900595,1778312554000,-513.80798448,0.000428,120]
[421900594,1778312554000,-150.6,0.00042784,120]
[421900596,1778312555000,-199.0,0.000428,120]
[421900597,1778312555000,-5334.4352356,0.000428,120]
[421900599,1778312555000,-500.0,0.00042821,120]
[421900598,1778312555000,-700.0,0.00042821,120]
[421900600,1778312555000,-150.6,0.00042884,120]
[421900604,1778312555000,-3271.8616997,0.000429,120]
[421900602,1778312555000,-149999.999999,0.000429,120]
[421900603,1778312555000,-597.62135692,0.000429,120]
[421900605,1778312555000,-5000.0,0.000429,120]
[421900607,1778312555000,-1143384.2149547,0.000429,30]
[421900606,1778312555000,-160.0,0.000429,74]
[421900601,1778312555000,-157.72043744,0.00042887,30]
[421900608,1778312566000,-177.83,0.00024439,30]
[421900609,1778312566000,-266.74,0.00025234,30]
[421900611,1778312566000,-177.83,0.00026131,30]
[421900613,1778312566000,-177.83,0.00027823,30]
[421900612,1778312566000,-177.83,0.00026977,30]
[421900614,1778312566000,-177.83,0.00028668,30]
[421900610,1778312566000,-177.83,0.00025285,30]
[421900615,1778312567000,-150.0,0.00041558,120]
[421900616,1778312567000,-225.29487712,0.00041958,120]
[421900618,1778312567000,-211.6686259,0.00041958,120]
[421900620,1778312567000,-199.0,0.00042967,120]
[421900619,1778312567000,-1463426.06642245,0.000429,30]
[421900621,1778312567000,-159.0,0.00042967,120]
[421900623,1778312567000,-243.0,0.00042967,120]
[421900622,1778312567000,-151.0,0.00042967,120]
[421900624,1778312567000,-1515.0,0.00042967,120]
[421900627,1778312567000,-224.0,0.00042967,120]
[421900617,1778312567000,-392.30247129,0.00041958,120]
[421900625,1778312567000,-240.0,0.00042967,120]
[421900630,1778312567000,-461.0,0.00042967,120]
[421900628,1778312567000,-156.0,0.00042967,120]
[421900629,1778312567000,-156.0,0.00042967,120]
[421900632,1778312567000,-500.0,0.00043,45]
[421900631,1778312567000,-150.6,0.00042984,120]
[421900633,1778312567000,-500.0,0.00043,120]
[421900637,1778312567000,-1034.87261566,0.00043,120]
[421900634,1778312567000,-1637.25238398,0.00043,120]
[421900635,1778312567000,-194.638644,0.00043,120]
[421900636,1778312567000,-229.94380722,0.00043,120]
[421900626,1778312567000,-154.0,0.00042967,120]
[421900639,1778312568000,-1000000.0,0.00043,120]
[421900638,1778312568000,-1000000.0,0.00043,120]
[421900642,1778312568000,-1000000.0,0.00043,120]
[421900640,1778312568000,-1000000.0,0.00043,120]
[421900644,1778312568000,-1000000.0,0.00043,120]
[421900643,1778312568000,-1000000.0,0.00043,120]
[421900645,1778312568000,-526355.64015238,0.00043,120]
[421900641,1778312568000,-1000000.0,0.00043,120]
[421900653,1778312577000,-3102.16,0.00028772,30]
[421900652,1778312577000,-3102.16,0.00028081,30]
[421900649,1778312577000,-4653.24,0.00026099,30]
[421900651,1778312577000,-3102.16,0.00027391,30]
[421900650,1778312577000,-3102.16,0.000267,30]
[421900648,1778312577000,-3102.16,0.0002601,30]
[421900647,1778312577000,-3102.16,0.00025319,30]
[421900646,1778312577000,-4653.24,0.00025234,30]
[421900661,1778312578000,-1256.00673678,0.00041958,120]
[421900659,1778312578000,-169.29947814,0.00041958,120]
[421900657,1778312578000,-1944.34,0.0004,30]
[421900662,1778312578000,-304.39705839,0.00041958,120]
[421900656,1778312578000,-1944.34,0.000355,30]
[421900654,1778312578000,-1944.34,0.00033,30]
[421900655,1778312578000,-1944.34,0.000342,30]
[421900658,1778312578000,-1260.26817856,0.00041958,120]
[421900663,1778312578000,-710.0,0.00042,120]
[421900660,1778312578000,-520.67718344,0.00041958,120]
[421900665,1778312578000,-10000.0,0.00043,120]
[421900666,1778312578000,-1005652.0,0.00043,120]
[421900668,1778312578000,-1323201.53,0.00043,120]
[421900667,1778312578000,-1000.65,0.00043,120]
[421900670,1778312578000,-2000.0,0.00043,120]
[421900669,1778312578000,-2000.0,0.00043,120]
[421900671,1778312578000,-2000.0,0.00043,120]
[421900672,1778312578000,-4213.78541516,0.00043,120]
[421900674,1778312578000,-1000000.0,0.00043,120]
[421900673,1778312578000,-184.90708529,0.00043,120]
[421900664,1778312578000,-479525.35984762,0.00043,120]
[421900684,1778312579000,-1143.1,0.00043,120]
[421900683,1778312579000,-347.0951,0.00043,90]
[421900681,1778312579000,-100000.0,0.00043,60]
[421900682,1778312579000,-935.8951,0.00043,90]
[421900680,1778312579000,-1004180.99,0.00043,120]
[421900676,1778312579000,-9200.0,0.00043,120]
[421900677,1778312579000,-1500.0,0.00043,120]
[421900678,1778312579000,-2000.0,0.00043,120]
[421900675,1778312579000,-854.5768048,0.00043,43]
[421900687,1778312579000,-11555.62091877,0.00043,30]
[421900679,1778312579000,-4024.51404959,0.00043,60]
[421900686,1778312579000,-175.46492401,0.00043,30]
[421900685,1778312579000,-1210.0,0.00043,120]
[421900690,1778312579000,-424.0217122,0.00043,30]
[421900698,1778312579000,-500.0,0.00043049,120]
[421900699,1778312579000,-500.0,0.00043049,120]
[421900696,1778312579000,-275.06231214,0.00043,120]
[421900697,1778312579000,-450.0,0.00043,120]
[421900694,1778312579000,-1458.59,0.00043,120]
[421900700,1778312579000,-150.6,0.00043084,120]
[421900693,1778312579000,-839.64499068,0.00043,120]
[421900692,1778312579000,-194.03980115,0.00043,120]
[421900691,1778312579000,-706.63837255,0.00043,30]
[421900689,1778312579000,-3635.77912717,0.00043,120]
[421900688,1778312579000,-61100.337416,0.00043,120]
[421900695,1778312579000,-3732.94,0.00043,120]
[421900711,1778312580000,-168.45,0.00043288,120]
[421900702,1778312580000,-150.6,0.00043184,120]
[421900701,1778312580000,-1938.9704672,0.000431,120]
[421900704,1778312580000,-20429.0,0.000432,90]
[421900705,1778312580000,-216.78,0.000432,120]
[421900706,1778312580000,-500.0,0.00043221,68]
[421900707,1778312580000,-4691.15424,0.00043256,120]
[421900709,1778312580000,-150.6,0.00043284,120]
[421900708,1778312580000,-150.0091974,0.00043272,120]
[421900710,1778312580000,-1561.0,0.00043288,120]
[421900703,1778312580000,-2000.0,0.000432,120]
[421900712,1778312580000,-1307.42490181,0.000433,120]
[421900713,1778312580000,-2000.0,0.000433,120]
[421900722,1778312580000,-320.0,0.00043452,120]
[421900721,1778312580000,-320.01,0.00043452,120]
[421900720,1778312580000,-2000.0,0.000434,120]
[421900718,1778312580000,-500.0,0.00043369,120]
[421900723,1778312580000,-320.0,0.00043452,120]
[421900719,1778312580000,-150.6,0.00043384,120]
[421900715,1778312580000,-199.0,0.000433,120]
[421900716,1778312580000,-405.643009,0.000433,120]
[421900714,1778312580000,-381.505078,0.000433,120]
[421900717,1778312580000,-700.0,0.00043369,120]
[421900733,1778312581000,-22434.78230298,0.0004348,30]
[421900724,1778312581000,-320.0,0.00043452,120]
[421900726,1778312581000,-320.0,0.00043452,120]
[421900727,1778312581000,-320.0,0.00043452,120]
[421900728,1778312581000,-320.0,0.00043452,120]
[421900729,1778312581000,-320.0,0.00043452,120]
[421900730,1778312581000,-320.0,0.00043452,120]
[421900731,1778312581000,-318.04,0.00043452,120]
[421900732,1778312581000,-15279.31233766,0.00043452,120]
[421900734,1778312581000,-150.6,0.00043484,120]
[421900725,1778312581000,-320.0,0.00043452,120]
[421900736,1778312581000,-100000.0,0.000435,35]
[421900745,1778312581000,-93983.82164016,0.000436,120]
[421900744,1778312581000,-442.52443077,0.00043593,120]
[421900742,1778312581000,-1500.0,0.000435,120]
[421900743,1778312581000,-150.6,0.00043584,120]
[421900746,1778312581000,-2000.0,0.000436,120]
[421900741,1778312581000,-2496.83144711,0.000435,120]
[421900737,1778312581000,-500.0,0.000435,45]
[421900738,1778312581000,-270.17152007,0.000435,120]
[421900739,1778312581000,-2000.0,0.000435,120]
[421900740,1778312581000,-2000.0,0.000435,120]
[421900735,1778312581000,-21113.0,0.000435,120]
[421900754,1778312582000,-2000.0,0.000437,120]
[421900747,1778312582000,-1000.0,0.000436,120]
[421900748,1778312582000,-3821.40020376,0.00043617,30]
[421900749,1778312582000,-3821.40020376,0.00043617,30]
[421900750,1778312582000,-150.0,0.00043636,120]
[421900751,1778312582000,-10164.62268012,0.00043644,120]
[421900753,1778312582000,-319.09597914,0.000437,120]
[421900752,1778312582000,-150.6,0.00043684,120]
[421900756,1778312582000,-153.0,0.000437,120]
[421900757,1778312582000,-961.0,0.000437,120]
[421900759,1778312582000,-100000.0,0.000438,32]
[421900758,1778312582000,-150.6,0.00043784,120]
[421900761,1778312582000,-1342.05194823,0.000438,30]
[421900760,1778312582000,-303.19262795,0.000438,30]
[421900763,1778312582000,-17442.44532669,0.00043835,120]
[421900762,1778312582000,-4491.66253462,0.0004382,90]
[421900764,1778312582000,-3463497.90631113,0.00043835,30]
[421900755,1778312582000,-2000.0,0.000437,120]
[421900766,1778312655000,283.79,0.00014109,2]
[421900767,1778312695000,150.0,0.00014109,2]
[421900772,1778313032000,-267.09836427,0.00014284,2]
[421900771,1778313032000,-458.43921392,0.00014284,2]
[421900775,1778313032000,-477.54461351,0.00014299,2]
[421900774,1778313032000,-300.0,0.00014291,2]
[421900773,1778313032000,-250.0,0.00014288,2]
[421900777,1778313032000,-255.75980045,0.00014299,2]
[421900776,1778313032000,-749.71874294,0.00014299,2]
[421900770,1778313032000,-739.83242181,0.00014284,2]
[421900780,1778313032000,-19.45566963,0.00014338,2]
[421900778,1778313032000,-97.4068431,0.00014299,2]
[421900781,1778313032000,-152.98433037,0.00014338,2]